Cogmind - Beta 14 @@@ ROGUE MODE // 2024.11.19 @ 23:55:04 Player: Komeiji O. Result: Destroyed by L-61 Swordsman with Power Sword Performance ------------- Evolutions (6) 3000 Regions Visited (11) 2200 Robots Destroyed (137) 685 Value Destroyed (6356) 6356 Prototype IDs (37) 740 Alien Tech Used (0) 0 Bonus (4333) 4333 TOTAL SCORE: 17314 Bonus ------- High Alert Combat Kills 1526 Follower Combat Kills 1173 Registered with UFD 300 Met Warlord at Base 500 MAIN.C Attacked Warlord 500 Warlord Defense Kills 334 Cogmind --------- Core Integrity 0/1150 Matter 300/300 Energy 8/100 System Corruption 24% Temperature Cool (0) Movement Core (50) Location -4/Factory Parts ------- > --- POWER (2) -------- (None) > --- PROPULSION (4) --- (None) > --- UTILITY (10) ----- Enhanced Optical Array Advanced Sensor Array > --- WEAPON (3) ------- (None) > --- INVENTORY (5) ---- Neutrino Core Advanced Heat Sink Matter Neutralizer Heavy Shock Bomb Launcher Peak State ------------ > --- POWER ------------ Improved Deuterium Engine Improved Deuterium Engine Light Antimatter Reactor > --- PROPULSION ------- Improved Treads Overtuned Treads Improved Medium Treads Armored Medium Treads Armored Medium Treads Armored Medium Treads > --- UTILITY ---------- Scrap Suit Advanced Heat Sink Advanced Cooling System Large Storage Unit Advanced Visual Processing Unit Advanced Targeting Computer Improved Weapon Cycler Tower Shield > --- WEAPON ----------- Force Rifle Force Rifle Force Rifle KE Penetrator Hypervelocity Gauss Cannon > --- INVENTORY -------- Improved Terrain Scanner Medium Reactive Plating Enhanced Scrap Shield Improved Thermal Shield Hacking Suite Mini Drone Bay Matter Neutralizer Vortex Cannon Vortex Cannon Heavy Shock Bomb Launcher Long-range Missile Launcher RU-N14's Throwing Claymores v3 Makeshift Axe Segregator [Rating: 133] Favorites ----------- Power Improved Deuterium Engine Engine Improved Deuterium Engine Power Core Neutrino Core Reactor Light Antimatter Reactor Propulsion Armored Medium Treads Treads Armored Medium Treads Leg Flexi-carbon Leg Wheel Centrium Wheel Hover Unit Antigrav System Utility Large Storage Unit Device Improved Terrain Scanner Storage Large Storage Unit Processor Advanced Visual Processing Unit Hackware Hacking Suite Protection Tower Shield Weapon Autogun Energy Gun Force Rifle Energy Cannon Subdweller Beam Cannon Ballistic Gun Autogun Ballistic Cannon Hypervelocity Gauss Cannon Launcher Grenade Launcher Special Weapon Mining Laser Slashing Weapon Makeshift Axe Build | -11 -10 -10 -10 -7 -7 -5 -5 -5 -5 -4 -4 ------- Run | Yrd Mat Min Sub Rec Scr Fac Upp Upp War Pro Fac Slots Evolved 12 | . . . . . . 10 . . . . 2 Power 1 | . . . . . . 1 . . . . . Propulsion 2 | . . . . . . 2 . . . . . Utility 8 | . . . . . . 6 . . . . 2 Weapon 1 | . . . . . . 1 . . . . . Parts Attached 173 | 7 6 2 15 5 9 27 14 5 10 15 58 Power 16 | 1 . . . 1 1 4 1 2 1 1 4 Engine 9 | 1 . . . 1 1 4 . 2 . . . Core 2 | . . . . . . . 1 . . . 1 Reactor 5 | . . . . . . . . . 1 1 3 Propulsion 25 | 2 . . 1 1 2 5 2 2 2 1 7 Treads 16 | 2 . . 1 1 2 3 . 2 2 1 2 Leg 1 | . . . . . . . 1 . . . . Wheel 7 | . . . . . . 2 1 . . . 4 Hover 1 | . . . . . . . . . . . 1 Flight . | . . . . . . . . . . . . Utility 75 | 2 2 2 6 3 . 14 7 1 4 9 25 Device 50 | 1 1 1 3 2 . 9 5 . 3 7 18 Storage 2 | 1 1 . . . . . . . . . . Processor 7 | . . . . . . 2 2 . . 1 2 Hackware 1 | . . . . . . . . . . . 1 Protection 15 | . . 1 3 1 . 3 . 1 1 1 4 Artifact . | . . . . . . . . . . . . Weapon 57 | 2 4 . 8 . 6 4 4 . 3 4 22 Energy Gun 12 | 2 1 . . . 1 2 . . 3 1 2 Energy Cannon 8 | . . . 2 . . . . . . . 6 Ballistic Gun 12 | . 3 . 2 . 4 1 1 . . 1 . Ballistic Cannon 10 | . . . . . . . 1 . . 2 7 Launcher 10 | . . . 3 . . 1 2 . . . 4 Special Weapon 3 | . . . 1 . 1 . . . . . 1 Impact Weapon . | . . . . . . . . . . . . Slashing Weapon 2 | . . . . . . . . . . . 2 Piercing Weapon . | . . . . . . . . . . . . Special Melee Weapon . | . . . . . . . . . . . . Unidentified Prototypes 1 | . 1 . . . . . . . . . . Corrupted Parts 3 | . . . . . . . 1 1 . . 1 System Corruption 12 | . . . . . . . 6 2 . . 4 Parts Lost 42 | . . . . . . 5 6 . . 1 30 Power 8 | . . . . . . 1 3 . . . 4 Propulsion 11 | . . . . . . 2 1 . . . 8 Utility 16 | . . . . . . 2 1 . . 1 12 Weapon 7 | . . . . . . . 1 . . . 6 Highest Loss Streak 9 | . . . . . . 3 2 . . 1 9 To Critical Strikes 1 | . . . . . . . . . . . 1 Average Slot Usage (%) 92 | . 100 100 100 100 100 87 86 78 78 94 87 Engine 9 | . 14 14 14 14 14 8 2 1 8 6 2 Treads 22 | . 28 28 28 28 28 17 17 18 17 24 14 Device 14 | . 14 13 9 10 14 21 16 6 11 18 21 Storage 9 | . 14 14 14 14 14 5 5 5 4 4 4 Processor 5 | . . . . . . 6 14 17 12 9 10 Protection 2 | . . . 4 3 . 4 2 4 4 4 4 Energy Gun 4 | . 17 . . . 1 10 . . 9 10 7 Energy Cannon 4 | . . . 11 14 5 . . . . . 1 Ballistic Gun 10 | . 10 28 10 14 20 3 10 11 5 2 . Ballistic Cannon 1 | . . . . . . . . 5 4 4 4 Peak Build Rating 133 | 8 12 12 14 17 33 82 80 91 133 133 113 Average Rating 52 | 5 9 11 12 15 19 67 75 83 117 109 94 On Entrance 46 | . 8 11 11 13 17 33 74 79 91 133 91 Naked Turns . | . . . . . . . . . . . . Heaviest Build 128 | 15 32 38 43 43 41 73 76 78 128 128 93 Greatest Support 152 | 40 40 40 40 40 42 92 72 99 152 152 111 Greatest Overweight (x) 5 | . . . 1 1 . 4 4 1 1 1 5 Average Overweight (x) . | . . . . . . . 1 . . . . Largest Inventory Capacity 15 | 8 15 15 15 15 15 15 15 15 15 15 15 Average Capacity 14 | 7 11 15 15 15 15 15 15 15 15 15 14 Most Carried 15 | 8 15 15 15 15 15 15 15 15 15 15 15 Average Carried 14 | 4 10 14 14 14 14 13 14 14 14 14 13 Final Capacity 15 | 8 15 15 15 15 15 15 15 15 15 15 5 Final Carried 15 | 8 15 15 15 15 15 15 15 15 15 15 4 Class Distribution -------------------- 29% | Mutant 23% | Commander-Mutant 14% | Gunner 8% | Scavenger-Gunner 6% | Scrapper 6% | Commander-Gunner 3% | Scavenger-Tank Dominant Class ---------------- Mutant | -10/Materials Mutant | -10/Mines Mutant | -10/Subcaves Commander-Mutant | -7/Recycling Commander-Mutant | -7/Scraptown Scrapper | -5/Factory Gunner | -5/Upper Caves Gunner | -5/Upper Caves Commander-Gunner | -5/Warlord Scavenger-Gunner | -4/Proximity Caves Scavenger-Gunner | -4/Factory Resources | -11 -10 -10 -10 -7 -7 -5 -5 -5 -5 -4 -4 ----------- Run | Yrd Mat Min Sub Rec Scr Fac Upp Upp War Pro Fac Matter Collected 4572 | 270 10 166 144 228 90 527 477 380 234 276 1770 Remotely 822 | . . . . . . . . . . . 822 Salvage Created 5732 | 154 122 215 190 47 . 869 652 519 198 220 2546 Parts 276 | 9 9 19 17 6 . 43 28 10 6 13 116 Haulers Intercepted 1 | . 1 . . . . . . . . . . Recyclers Shooed 2 | . . . . . . . . . . . 2 Parts Field Recycled . | . . . . . . . . . . . . Retrieved Matter . | . . . . . . . . . . . . Parts Self-Destructed 64 | . . . 14 . . . 16 12 . 22 . Prevented 8 | . . . . . . . 7 1 . . . Kills | -11 -10 -10 -10 -7 -7 -5 -5 -5 -5 -4 -4 ------- Run | Yrd Mat Min Sub Rec Scr Fac Upp Upp War Pro Fac Combat Hostiles Destroyed 106 | . 4 5 7 . . 11 17 5 3 3 51 Guns 51 | . 4 5 3 . . 10 8 5 3 2 11 Cannons 23 | . . . 4 . . . 1 . . 1 17 AOE 32 | . . . . . . 1 8 . . . 23 Classes Destroyed 22 | 3 3 2 3 . . 4 . 2 . 2 3 Worker 4 | 1 . 1 . . . . . . . . 2 Builder 4 | . . 1 . . . 1 . . . . 2 Tunneler 5 | 3 . 2 . . . . . . . . . Hauler 1 | . 1 . . . . . . . . . . Recycler 5 | 1 . . . . . 1 . . . . 3 Minesweeper 1 | . . . . . . . . 1 . . . Mechanic 2 | . . . . . . . . . . . 2 Operator 2 | . 1 . . . . 1 . . . . . Drone 1 | . . . . . . . . . . 1 . Turret 2 | . . . 2 . . . . . . . . Watcher 5 | . . . . . . 3 . . . . 2 Swarmer 27 | . 4 3 4 . . . 6 . . . 10 Grunt 30 | . . 2 1 . . 3 5 2 2 1 14 Brawler 2 | . . . . . . . . 1 . . 1 Duelist 6 | . . . . . . 1 . . 1 . 4 Sentry 5 | . . . 1 . . 1 1 1 . . 1 Hunter 12 | . . . . . . 2 2 1 . . 7 Programmer 18 | . . . . . . 4 3 . . . 11 Behemoth 1 | . . . . . . . . . . 1 . Striker 2 | . . . . . . . . . . . 2 Executioner 1 | . . . . . . . . . . . 1 Subdweller 1 | . . . 1 . . . . . . . . Best Kill Streak 15 | 3 4 3 4 . . 5 4 3 3 1 15 Combat Bots Only 12 | . 3 2 4 . . 3 4 3 3 1 12 Max Kills in Single Turn 6 | 1 1 2 2 . . 2 3 2 1 1 6 Gunslinging 1 | . . 1 . . . . . . . . . Exploded 4 | . . . . . . 1 3 . . . 4 Melee . | . . . . . . . . . . . . Uniques/NPCs Destroyed . | . . . . . . . . . . . . Combat | -11 -10 -10 -10 -7 -7 -5 -5 -5 -5 -4 -4 -------- Run | Yrd Mat Min Sub Rec Scr Fac Upp Upp War Pro Fac Hostile Shots Fired 703 | . 4 13 60 14 . 85 76 12 4 47 388 Missed 201 | . 1 2 20 4 . 21 22 2 2 5 122 Damage Taken 10303 | . 23 100 376 121 . 1375 1152 191 147 736 6082 Core 1658 | . 6 8 45 25 . 152 39 . 14 192 1177 Absorbed by Shields 1192 | . . . . 42 . 264 . . 32 476 378 Ignored by Resistances 109 | . . . . . . . . . . 77 32 Regen/Repaired (Parts) 214 | . . . . . . 41 10 . 163 . . Core Remaining (%) 75 | 100 . . . . 66 . . . . 60 . Volleys Fired 352 | 7 10 10 23 4 . 60 34 12 9 27 156 Largest 5 | 2 2 2 2 1 . 3 3 3 5 5 3 Hottest 334 | 100 100 46 123 80 . 252 111 126 334 334 221 Shots Fired 753 | 14 20 20 40 4 . 107 70 36 42 82 318 Gun 477 | 14 20 20 8 . . 107 60 23 33 55 137 Cannon 233 | . . . 11 4 . . 1 13 9 27 168 Launcher 32 | . . . 14 . . . 9 . . . 9 Special 11 | . . . 7 . . . . . . . 4 Kinetic 370 | . 4 20 8 . . 49 61 36 18 46 128 Thermal 333 | 14 16 . 18 4 . 58 . . 24 36 163 Explosive 29 | . . . 14 . . . 5 . . . 10 Electromagnetic 7 | . . . . . . . 4 . . . 3 Entropic 14 | . . . . . . . . . . . 14 Robot Hit Streak 25 | 10 15 12 25 4 . 10 13 7 12 16 17 Robot Miss Streak 4 | 1 3 2 1 1 . 3 2 1 2 2 4 Penetration Max 2 | . . . . . . 2 1 1 1 1 1 Secondary Targets 1 | . . 1 . . . . . . . . . Max Gunslinging Chain 1 | . . 1 . . . . . . . . . Shots Hit Robots 496 | 10 14 13 19 2 . 61 51 21 28 67 210 Core Hits 246 | 6 8 10 19 2 . 25 26 13 7 10 120 Critical Kills 13 | . . . . . . 2 1 3 . 1 6 Critical Parts Destroyed 35 | . . . . . . 2 3 3 5 3 19 Critical Strikes 65 | 2 1 . . . . 5 4 6 6 7 34 Burn 4 | 2 1 . . . . 1 . . . . . Destroy 52 | . . . . . . 4 4 6 6 7 25 Blast 5 | . . . . . . . . . . . 5 Sunder 4 | . . . . . . . . . . . 4 Melee Attacks . | . . . . . . . . . . . . Impact . | . . . . . . . . . . . . Slashing . | . . . . . . . . . . . . Piercing . | . . . . . . . . . . . . Sneak Attacks . | . . . . . . . . . . . . Combat Hostiles . | . . . . . . . . . . . . Follow-up Attacks . | . . . . . . . . . . . . Damage Inflicted 19737 | 123 184 256 473 84 . 2311 2396 521 625 1074 11690 Guns 8419 | 123 184 242 95 . . 2045 1357 419 535 830 2589 Cannons 4307 | . . . 174 84 . . 18 102 90 244 3595 Explosions 6812 | . . . 204 . . 266 1021 . . . 5321 Melee . | . . . . . . . . . . . . Ramming 67 | . . 14 . . . . . . . . 53 Kinetic 6724 | . 18 242 95 . . 988 1375 521 240 601 2644 Thermal 6964 | 123 166 . 174 84 . 1323 39 . 385 473 4197 Explosive 4674 | . . . 204 . . . 743 . . . 3727 Electromagnetic 453 | . . . . . . . 239 . . . 214 Impact . | . . . . . . . . . . . . Slashing 132 | . . . . . . . . . . . 132 Piercing . | . . . . . . . . . . . . Entropic 723 | . . . . . . . . . . . 723 Highest Corruption 24 | . . . . . . 5 18 20 21 . 24 Average Corruption 14 | . . . . . . 4 14 18 20 . 14 Corruption Purged . | . . . . . . . . . . . . Corruption Blocked . | . . . . . . . . . . . . Effects 154 | . . . . . . 8 29 47 3 . 67 Message Errors 38 | . . . . . . 4 6 8 1 . 19 Matter Fused 36 | . . . . . . 1 9 12 1 . 13 Heat Flow Errors 17 | . . . . . . . 3 8 . . 6 Energy Discharges 13 | . . . . . . . 4 3 . . 6 Parts Rejected 4 | . . . . . . 1 1 1 . . 1 Parts Fused 2 | . . . . . . 1 . 1 . . . Data Loss (minor) 20 | . . . . . . . 3 6 . . 11 Data Loss (major) 7 | . . . . . . . . 3 1 . 3 Misfires 6 | . . . . . . 1 . 4 . . 1 Alerts 1 | . . . . . . . 1 . . . . Misdirections 2 | . . . . . . . . . . . 2 Weapon Failures 8 | . . . . . . . 2 1 . . 5 Overload Shots . | . . . . . . . . . . . . Overflow Damage 946 | . . . . . . 140 55 7 . . 744 Projectiles 130 | . . . . . . . . 7 . . 123 Explosions 816 | . . . . . . 140 55 . . . 621 Melee . | . . . . . . . . . . . . Knockbacks 30 | . . . . . . . . 1 . . 29 Impact . | . . . . . . . . . . . . Kinetic 28 | . . . . . . . . 1 . . 27 Secondary 2 | . . . . . . . . . . . 2 Self-Inflicted Damage 671 | . . . . . . 99 126 . . . 446 Shots 15 | . . . . . . 1 4 . . . 10 Rammed 9 | . . 1 . . . . . . . . 8 Targets Rammed 9 | . . 1 . . . . . . . . 8 Kicked . | . . . . . . . . . . . . Crushed . | . . . . . . . . . . . . Highest Temperature 577 | 98 136 46 56 138 . 460 185 252 400 577 332 Average Temperature 126 | 34 43 12 21 61 . 199 50 74 152 248 95 Received Heat Transfer 1338 | . . 33 183 29 . 166 201 72 8 20 626 Effects 32 | . . . . . . 13 . . 1 16 2 Shutdowns 13 | . . . . . . 3 . . 1 9 . Energy Bleed 4 | . . . . . . 3 . . . . 1 Interference 5 | . . . . . . . . . . 5 . Matter Decay 2 | . . . . . . 2 . . . . . Short Circuit 1 | . . . . . . 1 . . . . . Damage (minor) 3 | . . . . . . 1 . . . 1 1 Damage (major) 3 | . . . . . . 3 . . . . . Damage (core) 1 | . . . . . . . . . . 1 . Siege Activations . | . . . . . . . . . . . . Robots Corrupted . | . . . . . . . . . . . . Combat Hostiles . | . . . . . . . . . . . . Parts Fried 1 | . . . . . . . 1 . . . . Impact Corruptions . | . . . . . . . . . . . . Robots Melted . | . . . . . . . . . . . . Combat Hostiles . | . . . . . . . . . . . . Parts Melted 26 | 2 . . . . . 8 . . 4 . 12 Heat Transferred 9287 | 518 555 . 222 111 . 1800 50 . 538 703 4790 Parts Sabotaged 3 | . . . . . . . . . . . 3 Parts Stolen . | . . . . . . . . . . . . Parts Stripped . | . . . . . . . . . . . . Power Chain Reactions 5 | . . . . . . . 3 . . . 2 Alert | -11 -10 -10 -10 -7 -7 -5 -5 -5 -5 -4 -4 ------- Run | Yrd Mat Min Sub Rec Scr Fac Upp Upp War Pro Fac Peak Influence 1470 | 25 114 85 . 100 . 511 . . . . 1470 Initial 300 | . 16 25 . 37 . . . . . . 300 Average 255 | 8 40 48 . 62 . 229 . . . . 611 Maximum Alert Level 4 | . . . . . . 2 . . . . 4 Low Security (%) 59 | 100 100 100 . 100 . 40 . . . . 9 Level 1 23 | . . . . . . 45 . . . . 43 Level 2 3 | . . . . . . 14 . . . . . Level 3 7 | . . . . . . . . . . . 26 Level 4 5 | . . . . . . . . . . . 19 Level 5 . | . . . . . . . . . . . . High Security . | . . . . . . . . . . . . Max Security . | . . . . . . . . . . . . Squads Dispatched 18 | . 1 . . . . 5 . 1 . . 11 Investigation 2 | . . . . . . 1 . . . . 1 Extermination 4 | . . . . . . 2 . . . . 2 Reinforcement 7 | . 1 . . . . 2 . . . . 4 Assault 4 | . . . . . . . . 1 . . 3 Garrison 1 | . . . . . . . . . . . 1 Intercept . | . . . . . . . . . . . . Searches Triggered . | . . . . . . . . . . . . Construction Impeded 3 | . . . . . . 1 . . . . 2 Haulers Reinforced . | . . . . . . . . . . . . Active Scanning Responses . | . . . . . . . . . . . . Cargo Convoy Interrupts 1 | . . . . . . . . . . . 1 Stealth | -11 -10 -10 -10 -7 -7 -5 -5 -5 -5 -4 -4 --------- Run | Yrd Mat Min Sub Rec Scr Fac Upp Upp War Pro Fac Distress Signals 7 | . 1 1 . . . . . . . 1 4 Communications Jammed . | . . . . . . . . . . . . Distress Signals . | . . . . . . . . . . . . Times Spotted 202 | . 9 5 12 7 . 23 17 5 30 5 89 Peak Tracking Total 12 | . 3 2 6 3 . 4 4 5 12 3 11 Tactical Retreats 9 | . . . 3 . . . . 2 . . 4 Traps | -11 -10 -10 -10 -7 -7 -5 -5 -5 -5 -4 -4 ------- Run | Yrd Mat Min Sub Rec Scr Fac Upp Upp War Pro Fac Traps Triggered 10 | . . . 1 . . 2 . . 1 . 6 Indirectly . | . . . . . . . . . . . . Trap Hack Attempts . | . . . . . . . . . . . . Triggered . | . . . . . . . . . . . . Disarmed . | . . . . . . . . . . . . Reprogrammed . | . . . . . . . . . . . . Reused . | . . . . . . . . . . . . Traps Extracted . | . . . . . . . . . . . . Installed . | . . . . . . . . . . . . Triggered 10 | . . . . . . . 2 1 7 . . Machines | -11 -10 -10 -10 -7 -7 -5 -5 -5 -5 -4 -4 ---------- Run | Yrd Mat Min Sub Rec Scr Fac Upp Upp War Pro Fac Machines Disabled 23 | . . . 4 . . 10 . 1 . . 8 Max in Single Turn 4 | . . . 3 . . 3 . 1 . . 4 Garrison Access 1 | . . . . . . 1 . . . . . Machines Repaired . | . . . . . . . . . . . . Machines Dismantled . | . . . . . . . . . . . . Machines Sabotaged . | . . . . . . . . . . . . Overloaded Fab Kills . | . . . . . . . . . . . . Hacking | -11 -10 -10 -10 -7 -7 -5 -5 -5 -5 -4 -4 --------- Run | Yrd Mat Min Sub Rec Scr Fac Upp Upp War Pro Fac Machines Accessed 22 | . 1 . 1 6 . 7 . . 4 . 3 Terminals 8 | . 1 . . 3 . 3 . . . . 1 Fabricators 2 | . . . . . . 2 . . . . . Repair Stations . | . . . . . . . . . . . . Recycling Units 5 | . . . . 3 . 1 . . . . 1 Scanalyzers 1 | . . . . . . . . . . . 1 Garrison Access 1 | . . . . . . 1 . . . . . Total Hacks 48 | . 3 . 5 11 . 12 . . 5 . 12 Successful 28 | . 2 . 5 3 . 6 . . 5 . 7 Failed 20 | . 1 . . 8 . 6 . . . . 5 Catastrophic 4 | . . . . 2 . 1 . . . . 1 Database Lockouts . | . . . . . . . . . . . . Manual 14 | . 3 . . 2 . 5 . . . . 4 Terminals 18 | . 3 . . 6 . 8 . . . . 1 Fabricators 2 | . . . . . . 2 . . . . . Repair Stations . | . . . . . . . . . . . . Recycling Units 9 | . . . . 5 . 1 . . . . 3 Scanalyzers 8 | . . . . . . . . . . . 8 Garrison Access 1 | . . . . . . 1 . . . . . Terminal Hacks 15 | . 2 . 5 2 . 1 . . 5 . . Record 7 | . . . 4 1 . . . . 2 . . Robot Analysis 2 | . 2 . . . . . . . . . . Prototype ID Bank 2 | . . . . . . . . . 2 . . Open Door 1 | . . . . . . . . . 1 . . Branch Access Points 1 | . . . . . . 1 . . . . . Zone Layout 1 | . . . . 1 . . . . . . . Derelict Proto ID Bank 1 | . . . 1 . . . . . . . . Fabricator Hacks 1 | . . . . . . 1 . . . . . Network Status 1 | . . . . . . 1 . . . . . Repair Station Hacks . | . . . . . . . . . . . . Recycling Unit Hacks 1 | . . . . 1 . . . . . . . Retrieve Components 1 | . . . . 1 . . . . . . . Scanalyzer 6 | . . . . . . . . . . . 6 Insert Component 3 | . . . . . . . . . . . 3 Analyze 3 | . . . . . . . . . . . 3 Garrison Access Hacks 1 | . . . . . . 1 . . . . . Seal Access 1 | . . . . . . 1 . . . . . Unauthorized Hacks 4 | . . . . . . 3 . . . . 1 Terminals 2 | . . . . . . 2 . . . . . Botnet 2 | . . . . . . 2 . . . . . Fabricators . | . . . . . . . . . . . . Repair Stations 2 | . . . . . . 1 . . . . 1 Recycling Units . | . . . . . . . . . . . . Scrapoids 2 | . . . . . . 1 . . . . 1 Scanalyzers . | . . . . . . . . . . . . Garrison Access . | . . . . . . . . . . . . Data Cores Recovered . | . . . . . . . . . . . . Used . | . . . . . . . . . . . . Hacking Detections 13 | . 1 . . 5 . 4 . . . . 3 Full Trace Events . | . . . . . . . . . . . . Feedback Events . | . . . . . . . . . . . . Feedback Blocked . | . . . . . . . . . . . . Robot Schematics Acquired . | . . . . . . . . . . . . Robots Built . | . . . . . . . . . . . . Authchips . | . . . . . . . . . . . . Time . | . . . . . . . . . . . . Total Robot Build Rating . | . . . . . . . . . . . . Part Schematics Acquired 3 | . . . . . . . . . . . 3 Parts Built . | . . . . . . . . . . . . Authchips . | . . . . . . . . . . . . Time . | . . . . . . . . . . . . Total Part Build Rating . | . . . . . . . . . . . . Parts Repaired . | . . . . . . . . . . . . Time . | . . . . . . . . . . . . Parts Recycled . | . . . . . . . . . . . . Recycled Matter . | . . . . . . . . . . . . Retrieved Matter . | . . . . . . . . . . . . Retrieved Components 2 | . . . . 2 . . . . . . . Parts Scanalyzed 3 | . . . . . . . . . . . 3 Part Schematics Acquired 3 | . . . . . . . . . . . 3 Parts Damaged . | . . . . . . . . . . . . Bothacking | -11 -10 -10 -10 -7 -7 -5 -5 -5 -5 -4 -4 ------------ Run | Yrd Mat Min Sub Rec Scr Fac Upp Upp War Pro Fac Used RIF Installer . | . . . . . . . . . . . . Robots Hacked . | . . . . . . . . . . . . Non-combat . | . . . . . . . . . . . . Combat . | . . . . . . . . . . . . Robot Hacks Applied . | . . . . . . . . . . . . Relay Couplers Released 3 | . . . . . . . . . . . 3 Programmers 3 | . . . . . . . . . . . 3 Fabnet Peak Effective % . | . . . . . . . . . . . . Robots Rewired 19 | . . . . 13 . . . 1 5 . . Allies Hacked 3 | . . . . . . 3 . . . . . Hacks Repelled . | . . . . . . . . . . . . Allies | -11 -10 -10 -10 -7 -7 -5 -5 -5 -5 -4 -4 -------- Run | Yrd Mat Min Sub Rec Scr Fac Upp Upp War Pro Fac Total Allies 29 | . . . . 13 . 5 . 1 5 . 5 Largest Group 10 | . . . . 10 10 10 . 1 6 3 5 Highest-Rated Group 277 | . . . . 255 255 255 . 30 277 155 235 Highest-Rated Ally 65 | . . . . 40 40 50 . 30 65 65 65 Total Orders 7 | . . . . . . 1 . . . 3 3 STAY 1 | . . . . . . 1 . . . . . EXPLORE 2 | . . . . . . . . . . 1 1 RETURN 4 | . . . . . . . . . . 2 2 Ally Attacks 156 | . . . . 17 . 62 . . 31 15 31 Total Damage 4205 | . . . . 415 . 1180 . . 1321 573 716 Kills 32 | . . . . 9 . 7 . . 11 3 2 Allies Corrupted 1 | . . . . . . . . . . . 1 Allies Melted 1 | . . . . . . . . . 1 . . Intel | -11 -10 -10 -10 -7 -7 -5 -5 -5 -5 -4 -4 ------- Run | Yrd Mat Min Sub Rec Scr Fac Upp Upp War Pro Fac Robot Analysis Total 2 | . 2 . . . . . . . . . . Derelict Logs Recovered 7 | . . 1 1 . 2 . 1 . . 2 . Drone Launches 4 | . . . . . . . . . . 2 2 Drone Recoveries 4 | . . . . . . . . . . 2 2 Exploration | -11 -10 -10 -10 -7 -7 -5 -5 -5 -5 -4 -4 ------------- Run | Yrd Mat Min Sub Rec Scr Fac Upp Upp War Pro Fac Turns Passed 14703 | 209 573 804 2162 1072 2779 1338 658 1025 1591 860 1632 Spaces Moved 7631 | 110 322 483 1099 529 1678 734 322 460 679 457 758 Core 99 | 5 . . . . . . . . . . 94 Treads 6877 | 105 322 483 1099 529 1678 487 184 460 679 457 394 Legs . | . . . . . . . . . . . . Wheels 654 | . . . . . . 247 138 . . . 269 Hover 1 | . . . . . . . . . . . 1 Flight . | . . . . . . . . . . . . Fastest Speed 50 | 50 160 160 160 160 157 130 145 162 161 161 50 Average Speed 170 | 155 160 160 178 175 163 153 163 211 216 163 143 Slowest Speed 250 | 160 160 160 240 245 165 211 170 250 230 250 250 Overloaded Moves . | . . . . . . . . . . . . Propulsion Burnouts . | . . . . . . . . . . . . Robots Hopped . | . . . . . . . . . . . . Cave-ins Triggered . | . . . . . . . . . . . . Exploration Rate (%) 59 | 5 58 94 52 78 90 19 62 69 89 77 16 Regions Visited 11 Branch Regions 8 Pre-discovered Areas 2 | . . . . . 1 . . . . 1 . Known Exits Taken 2 | . . . . . . 1 1 . . . . Unknown Exits Taken 9 | 1 1 1 1 1 1 . . 1 1 1 . Scrap Searched 12 | . . 1 . . 6 . 3 2 . . . Spaces Dug 61 | . . . . . . 6 22 . . . 33 Terrain Destroyed 471 | . . . 35 1 . 95 113 7 1 . 219 Melee . | . . . . . . . . . . . . Projectile 131 | . . . 2 1 . 46 24 7 1 . 50 AOE 340 | . . . 33 . . 49 89 . . . 169 Terrain Rammed . | . . . . . . . . . . . . Walls Destroyed . | . . . . . . . . . . . . Machines Disabled . | . . . . . . . . . . . . Actions | -11 -10 -10 -10 -7 -7 -5 -5 -5 -5 -4 -4 --------- Run | Yrd Mat Min Sub Rec Scr Fac Upp Upp War Pro Fac Total 8805 | 131 362 497 1242 671 1716 900 403 492 783 517 1091 Wait 310 | . 8 . 96 29 8 38 25 2 15 10 79 Move 7620 | 109 321 482 1098 528 1677 733 321 459 678 456 758 Hop . | . . . . . . . . . . . . Pick Up 87 | 8 10 1 4 4 9 16 5 3 7 4 16 Fast Attach 45 | 7 2 . . . 1 7 3 4 5 3 13 Attach 47 | . . . . . 2 12 4 1 3 3 22 Detach 11 | . . . . . . 4 1 . . 2 4 Swap 81 | . 4 2 15 5 6 8 7 . 2 9 23 Drop 66 | . 7 1 6 5 13 9 3 4 4 3 11 Fire 352 | 7 10 10 23 4 . 60 34 12 9 27 156 Melee . | . . . . . . . . . . . . Ram 8 | . . . . . . . . . . . 8 Kick . | . . . . . . . . . . . . Crush 2 | . . 1 . . . . . . . . 1 Escape Stasis 13 | . . . . . . 13 . . . . . Rewire 163 | . . . . 96 . . . 7 60 . . Trap . | . . . . . . . . . . . . Miscellaneous . | . . . . . . . . . . . . Route ------- -11/Scrapyard -10/Materials (discovered 3 exits: [*Mat] / [*Min x2]) -10/Mines (discovered 3 exits: [*Mat x2] / *Sub) -10/Subcaves -7/Recycling (discovered 2 exits: *Fac / *Scr) -7/Scraptown (discovered 2 exits: *Fac x2) -5/Factory (discovered 4 exits: *Upp x2 / Ext x2) -5/Upper Caves -5/Upper Caves (discovered 2 exits: *Fac / *War) -5/Warlord -4/Proximity Caves -4/Factory History --------- Turn | Location | Event 10 | -11/Scrapyard | Discovered new exit (range 15) 210 | -11/Scrapyard | Entered Materials 306 | -10/Materials | Build established: Mutant 475 | -10/Materials | Discovered new exit (range 7) 588 | -10/Materials | Discovered new exit (range 9) 607 | -10/Materials | Discovered new exit (range 15) 783 | -10/Materials | Entered Mines 820 | -10/Mines | Met a Derelict bent on vengeance 924 | -10/Mines | Discovered new exit (range 14) 1149 | -10/Mines | Learned Materials stockpile data 1245 | -10/Mines | Discovered new exit (range 8) 1453 | -10/Mines | Discovered new exit (range 7) 1587 | -10/Mines | Entered Subcaves 1610 | -10/Subcaves | Shifting Twisted Machinery released Sub. Beam Cannon 1615 | -10/Subcaves | Shifting Twisted Machinery released Flamer 1626 | -10/Subcaves | Shifting Twisted Machinery released Flamer 1757 | -10/Subcaves | Visited 4L-MR0's lab 1782 | -10/Subcaves | Found Tower Shield 1912 | -10/Subcaves | Learned 2 Materials zone layouts 2047 | -10/Subcaves | Shifting Twisted Machinery released Sub. Monowheel 2881 | -10/Subcaves | Discovered new exit (range 12) 3749 | -10/Subcaves | Entered Recycling 4505 | -7/Recycling | Build established: Commander-Mutant 4532 | -7/Recycling | Discovered new exit (range 13) 4580 | -7/Recycling | P-60 Hacker assimilated allied Scavenger 4a 4582 | -7/Recycling | P-60 Hacker assimilated allied Commando 4b 4583 | -7/Recycling | P-60 Hacker assimilated allied Gladiator 4a 4767 | -7/Recycling | Scanned before Scraplab entrance 4790 | -7/Recycling | Entered Scraplab 4803 | -7/Recycling | Discovered new exit (range 3) 4821 | -7/Recycling | Entered Scraptown 4821 | -7/Scraptown | Accompanied by 10 allies 4983 | -7/Scraptown | Heard Great Nut preacher, LISTEN AND RECITE! 5036 | -7/Scraptown | Visited SPCMW 5079 | -7/Scraptown | Visited Awakened 5166 | -7/Scraptown | Scanned Subdweller tech in exchange for log data 5175 | -7/Scraptown | Learned Research stockpile data 5203 | -7/Scraptown | Discovered new exit (range 11) 5646 | -7/Scraptown | Visited Assassins FH 5706 | -7/Scraptown | Visited Shadow of the Wyrm 5731 | -7/Scraptown | Visited TADAMA 5762 | -7/Scraptown | Visited Spacefarers 5881 | -7/Scraptown | Visited Fellowship of the Rings 5914 | -7/Scraptown | Visited UFD Registry 5914 | -7/Scraptown | Registered with UFD as "Phasespawn" 5957 | -7/Scraptown | Visited A0-MCA Data Center 5967 | -7/Scraptown | Given an A- rating by A0-MCA 5971 | -7/Scraptown | Found A0-MCA's Component Scanner 6002 | -7/Scraptown | Visited Scrapoid Research Area 6038 | -7/Scraptown | Visited Junk Repository 6121 | -7/Scraptown | Visited Supply Room 6175 | -7/Scraptown | Visited Modified Component R&D 6278 | -7/Scraptown | Visited DA-N13 Charitable Foundation 6294 | -7/Scraptown | Found DCF Scrap (28 items) 6327 | -7/Scraptown | Visited Curators Association 6393 | -7/Scraptown | Visited Observation Area 6787 | -7/Scraptown | Delivered Scrap Shield to a Scientist 7099 | -7/Scraptown | Found Scrap Suit 7271 | -7/Scraptown | Discovered new exit (range 14) 7600 | -7/Scraptown | Entered Factory 7600 | -5/Factory | Accompanied by 10 allies 7600 | -5/Factory | Evolved 10 slots: Power x1, Propulsion x2, Utility x6, Weapon x1 7908 | -5/Factory | Lost 7 allies 8012 | -5/Factory | Spotted B-75 Beast 8169 | -5/Factory | Build established: Scrapper 8189 | -5/Factory | Lost 3 parts (1p1n1u) 8451 | -5/Factory | Identified exit to Upper Caves 8451 | -5/Factory | Identified exit to Extension 8522 | -5/Factory | Scrapoid reinforcements arrived 8938 | -5/Factory | Entered Upper Caves 8940 | -5/Upper Caves | UFD Scientist delivered a prototype 8952 | -5/Upper Caves | Found Prototype Protection 9004 | -5/Upper Caves | Attracted the attention of an 0b10 checkpoint 9028 | -5/Upper Caves | System corruption reached 10% 9152 | -5/Upper Caves | Ambushed by research squad 9254 | -5/Upper Caves | Identified Enh. Scrap Shield 9355 | -5/Upper Caves | Identified exit to Upper Caves 9556 | -5/Upper Caves | Build established: Gunner 9596 | -5/Upper Caves | Entered another Upper Caves area 9596 | -5/Upper Caves | Discovered new exit (range 12) 10295 | -5/Upper Caves | Attracted the attention of an 0b10 outpost 10471 | -5/Upper Caves | Discovered new exit (range 11) 10621 | -5/Upper Caves | Entered Warlord 10621 | -5/Warlord | Accompanied by 1 ally 10675 | -5/Warlord | System corruption cleaned by Quarantine Array 10757 | -5/Warlord | Attached Tower Shield, gained temporary slots: Power, Propulsion x2, Utility x2, Weapon x2 10809 | -5/Warlord | Found RU-N14's Throwing Claymores v3 11478 | -5/Warlord | Build established: Commander-Gunner 11633 | -5/Warlord | Visited the Vortex Lab 11641 | -5/Warlord | Warlord's base attacked by MAIN.C 11655 | -5/Warlord | Found Vortex Cannon 11659 | -5/Warlord | Found Vortex Cannon 11801 | -5/Warlord | Rebuked by Warlord 11991 | -5/Warlord | Warlord forces counterattacked 12081 | -5/Warlord | Spotted Executioner 12081 | -5/Warlord | Allies destroyed Executioner 12108 | -5/Warlord | Lost 3 allies 12141 | -5/Warlord | Spotted Executioner 12184 | -5/Warlord | Discovered new exit (range 14) 12196 | -5/Warlord | Lost 6 allies 12212 | -5/Warlord | Entered Proximity Caves 12212 | -4/Proximity Caves | Accompanied by 4 allies 12314 | -4/Proximity Caves | Learned location of Quarantine (-2) 12372 | -4/Proximity Caves | Build established: Scavenger-Gunner 12544 | -4/Proximity Caves | Spotter reported a threat 12591 | -4/Proximity Caves | Spotted B-86 Titan 12673 | -4/Proximity Caves | Destroyed B-86 Titan 12819 | -4/Proximity Caves | Spotter reported a threat 12856 | -4/Proximity Caves | Discovered new exit (range 50) 12905 | -4/Proximity Caves | Learned Research terminal intel 12989 | -4/Proximity Caves | Build established: Scavenger-Skirmisher 13072 | -4/Proximity Caves | Entered Factory 13072 | -4/Factory | Accompanied by 1 ally 13072 | -4/Factory | Evolved 2 slots: Utility x2 13103 | -4/Factory | Found Launcher Loader 13669 | -4/Factory | Build established: Scavenger-Tank 13682 | -4/Factory | System corruption reached 10% 13762 | -4/Factory | Garrison activated, responded to threat 13975 | -4/Factory | Destroyed 12 combat bots 13979 | -4/Factory | Lost 3 parts (1p1n1u) 14072 | -4/Factory | First assault squad dispatched 14180 | -4/Factory | Lost 5 parts (1n3u1w) 14300 | -4/Factory | Scrapoids reinforcements arrived? 14376 | -4/Factory | Lost 5 allies 14406 | -4/Factory | Destroyed 9 combat bots 14450 | -4/Factory | Spotted Striker 14451 | -4/Factory | Cargo convoy interrupted 14453 | -4/Factory | Spotted Executioner 14453 | -4/Factory | Spotted Striker 14453 | -4/Factory | Destroyed Striker 14473 | -4/Factory | Destroyed Striker 14494 | -4/Factory | Destroyed 9 combat bots 14494 | -4/Factory | Destroyed Executioner 14523 | -4/Factory | Lost 9 parts (1p2n5u1w) 14547 | -4/Factory | Spotted B-86 Titan 14606 | -4/Factory | Core integrity fell below 50% 14618 | -4/Factory | Core integrity fell below 20% 14643 | -4/Factory | Lost 6 parts (1p2n2u1w) 14704 | -4/Factory | Destroyed by L-61 Swordsman with Power Sword Last Messages --------------- 14692_ G-67 Veteran suffers critical hit (Sunder). 14692_ G-67 Veteran Plasma Rifle ripped off. 14694_ Destroyed Adv. Heat Sink. 14694_ ALERT: Suspicious intruders detected, dispatching Specialist reinforcements to area. 14698_ G-67 Veteran suffers critical hit (Sunder). 14698_ G-67 Veteran Adv. Heat Sink ripped off. 14698_ G-67 Veteran Flexi-carbon Leg ripped off. 14698_ G-67 Veteran destroyed. 14698_ Vortex Cannon destroyed. 14699_ K-01 Serf collects debris. 14700_ Acquired Unknown Device. 14700_ Identified Adv. Sensor Array. 14701_ System corrupted: Matter fused (-8). 14702_ Slammed into L-61 Swordsman. 14702_ Antigrav System destroyed. 14703_ Acquired 23 matter. 14703_ Slammed into L-61 Swordsman. 14703_ Destabilizing: System corrupted (+1). 14704_ Slammed into L-61 Swordsman. Map ----- +----------------------------------------------------+ | ?????????????????????????????????????????????????? | | ?????????????????????????????????????????????????? | | ?????????????????????????????????????????????????? | | ?????????????????????????????????????????????????? | | ?????????????????????????????????????????????????? | | ?????????????????????????????????????????????????? | | ?????????????????????????????????????????????????? | | ?????????????????????????????????????????????????? | | ????????????##########???????????????????????????? | | ????????????# """ #???????????????????????????? | | ????????????# ""T"" #???????????????????????????? | | ????????????# "" "" #???????????????????????????? | | ????????????# #???????????????????????????? | | ????????????# #???????????????????????????? | | ????????????# """ =#???????????????????????????? | | ????????????# """"" ###?????????????????????????? | | ????????????# """"" # #??????????????????######## | | ????????????# ###??????????????????######## | | ????????######/########???????????????????## """ | | ???????## # #?????????????????????????## "R" | | ??????## #?????????????????????????## " | | ?????## ! #?????????????????????????##=! [ | | ?????# ##????????##???????????????# | | ?????# =% ##?????## #??????????###### | | ?????# # ##########k#####################+## | | ?????# + H ku[@== kH p k !%* % | | ?????## # #########l################## =# | | ??????# = #???###?????????######## # | | ???######### ##???????????????# # H # | | ?? # !% [ #???????????????# #![%= %# | | ?? # #???????????# # %+!*% % | | ?? # #???????????#####% #### % # | | ? # ##??????????????##%% #####+## | | # ???????????????##| # | | # #?????????########+###### | | + #?????????# %#%#### % | | # #?????????# % #=###### | | ? # #?????????# %%#%###### | | ## # #?????????# %+%% % %+ % | | ?# # ###?????????# # ###### ! | | ?# # %! % #???????????# #%#=#### % | | ?# ###############???????????########%###?## % | | ?# ##############???????????????????#%#???## | | ?# # = |[!= #???????????????????# #???## | | ?# # == #???????????????????# #???##+##### | | ?# # """ """ #???????????????????# #???## ##### | | ## # """"" #???????????????????# ##### #### | | # """"" !!* #######?????????????# ] | | # """" %[ # #?????????????####### # | | + =!! !#######???????????????????####### | +----------------------------------------------------+ Best States ------------- Heat Dissipation 112 Energy Generation 43 Energy Capacity 550 Matter Stores 300 Matter Capacity 300 Sight Range 22 Terrain Scan Range 16 Terrain Scan Density 10 Power Amplification 30 Armor Coverage 2000 Resistance: KI 30 Weapon Cycling 20 Evasion (%) 50 Targeting Accuracy 8 Recoil Reduction 6 Offensive Hacking 10 Item Schematics ----------------- Hardcell Cannon | -4/Factory | Scanalyzed Launcher Loader | -4/Factory | Scanalyzed Lrn. Missile Launcher | -4/Factory | Scanalyzed Robot Schematics ------------------ None Fabricated ------------ Nothing Alien Tech Used ----------------- None Achievements -------------- None Challenges ------------ None Game ------ Seed BoreGravmagSource Manual? 0 Play Time 03:03:52 Cumulative 168.2 hours Start 2024.11.19 @ 09:44:28 End 2024.11.19 @ 23:55:04 Sessions 5 Manual Loads 0 Difficulty Rogue Special Mode None Game No. 61 Rogue 60 Adventurer 1 Explorer 0 Win Type - Total 3 Types 3/0/0/0/0/0/0/0/0 Lore% 52 Gallery% 64 Achievement% 50 Wizard Run 0 Options --------- Layout 0 ASCII 1 Keyboard 1 Movement Vi Keybinds 0 Fullscreen 2 Font 36/Terminus++ Map View 76x50 Zoom Use 0% Tactical HUD 1 Map Filters NONE Filters NONE Steam 1 RUN: b30110f3-5810-42ec-ab37-cc05f68ac087